[Event "Superettan 2017/2018"]
[Site "Vegagatan 20, Gothenburg, Sweden"]
[Date "2018.02.02"]
[Round "1.10"]
[White "Hamark, Jesper"]
[Black "Shkuran, Danylo"]
[Result "1-0"]
[TimeControl "90 minutes for 40 moves + 30 minutes for the rest of the game + 30 seconds per move from move one."]
[BlackTitle "IM"]
[WhiteFideId "1704338"]
[BlackFideId "14106248"]
[WhiteElo "2333"]
[BlackElo "2397"]

1. g3 {[%clk 01:30:40]} {[%emt 00:00:19]} Nf6 {[%clk 01:30:45]} {[%emt
00:00:16]} 2. Bg2 {[%clk 01:31:01]} {[%emt 00:00:09]} g6 {[%clk 01:30:39]}
{[%emt 00:00:36]} 3. d4 {[%clk 01:30:40]} {[%emt 00:00:50]} Bg7 {[%clk
01:30:57]} {[%emt 00:00:12]} 4. e4 {[%clk 01:30:27]} {[%emt 00:00:43]} d6
{[%clk 01:31:06]} {[%emt 00:00:21]} 5. Ne2 {[%clk 01:30:50]} {[%emt 00:00:07]}
O-O {[%clk 01:31:30]} {[%emt 00:00:06]} 6. O-O {[%clk 01:31:15]} {[%emt
00:00:06]} Nbd7 {[%clk 01:29:14]} {[%emt 00:02:46]} 7. h3 {[%clk 01:27:49]}
{[%emt 00:03:56]} c6 {[%clk 01:28:06]} {[%emt 00:01:38]} 8. a4 {[%clk
01:27:37]} {[%emt 00:00:42]} a5 {[%clk 01:25:47]} {[%emt 00:02:49]} 9. Nbc3
{[%clk 01:27:37]} {[%emt 00:00:30]} e5 {[%clk 01:25:24]} {[%emt 00:00:53]} 10.
Be3 {[%clk 01:24:55]} {[%emt 00:03:12]} exd4 {[%clk 01:19:28]} {[%emt
00:06:26]} 11. Bxd4 {[%clk 01:24:40]} {[%emt 00:00:45]} Qc7 {[%clk 01:13:33]}
{[%emt 00:06:25]} 12. g4 {[%clk 01:22:06]} {[%emt 00:03:04]} Rd8 {[%clk
01:04:38]} {[%emt 00:41:43]} 13. f4 {[%clk 01:11:06]} Nf8 {[%clk 00:53:17]} 14.
f5 {[%clk 00:44:47]} {[%emt 00:17:52]} N8d7 {[%clk 00:44:58]} {[%emt 00:08:49]}
15. Qe1 {[%clk 00:39:59]} {[%emt 00:05:18]} Ne5 {[%clk 00:35:46]} {[%emt
00:09:42]} 16. Qh4 {[%clk 00:31:48]} {[%emt 00:08:41]} Ne8 {[%clk 00:27:36]}
{[%emt 00:08:40]} 17. Rad1 {[%clk 00:29:19]} {[%emt 00:02:59]} Rd7 {[%clk
00:19:40]} {[%emt 00:08:26]} 18. g5 {[%clk 00:23:34]} {[%emt 00:06:14]} b6
{[%clk 00:13:30]} {[%emt 00:06:41]} 19. Nf4 {[%clk 00:20:26]} {[%emt 00:03:38]}
Qd8 {[%clk 00:10:34]} {[%emt 00:03:26]} 20. Qg3 {[%clk 00:19:34]} {[%emt
00:01:22]} Rb8 {[%clk 00:00:38]} {[%emt 00:10:27]} 21. h4 {[%clk 00:19:45]}
{[%emt 00:00:18]} Ba6 {[%clk 00:00:35]} {[%emt 00:00:33]} 22. Rfe1 {[%clk
00:19:28]} {[%emt 00:00:46]} Nc4 {[%clk 00:00:38]} {[%emt 00:00:27]} 23. f6
{[%clk 00:14:03]} {[%emt 00:05:55]} Nxf6 {[%clk 00:00:39]} {[%emt 00:00:29]} 24.
gxf6 {[%clk 00:14:17]} {[%emt 00:00:16]} Bxf6 {[%clk 00:01:06]} {[%emt
00:00:02]} 25. Bxf6 {[%clk 00:13:05]} {[%emt 00:01:42]} Qxf6 {[%clk 00:01:34]}
{[%emt 00:00:02]} 26. b3 {[%clk 00:12:40]} {[%emt 00:00:56]} Ne5 {[%clk
00:01:40]} {[%emt 00:00:24]} 27. Bf1 {[%clk 00:11:20]} {[%emt 00:01:49]} Bxf1
{[%clk 00:00:33]} {[%emt 00:01:37]} 28. Rxf1 {[%clk 00:11:43]} {[%emt
00:00:07]} Qg7 {[%clk 00:00:50]} {[%emt 00:00:14]} 29. Rd2 {[%clk 00:10:27]}
{[%emt 00:01:46]} Rbd8 {[%clk 00:00:39]} {[%emt 00:00:41]} 30. Rg2 {[%clk
00:09:30]} {[%emt 00:01:27]} Qh6 {[%clk 00:00:34]} {[%emt 00:00:35]} 31. Qg5
{[%clk 00:09:03]} {[%emt 00:00:56]} Qxg5 {[%clk 00:00:42]} {[%emt 00:00:22]} 32.
hxg5 {[%clk 00:09:19]} {[%emt 00:00:13]} Kg7 {[%clk 00:00:41]} {[%emt
00:00:32]} 33. Rd2 {[%clk 00:07:14]} {[%emt 00:02:35]} Kg8 {[%clk 00:00:33]}
{[%emt 00:00:38]} 34. Kg2 {[%clk 00:07:05]} {[%emt 00:00:39]} Kg7 {[%clk
00:00:50]} {[%emt 00:00:13]} 35. Rh1 {[%clk 00:06:39]} {[%emt 00:00:55]} Re7
{[%clk 00:01:01]} {[%emt 00:00:20]} 36. Rhd1 {[%clk 00:06:46]} {[%emt
00:00:22]} Red7 {[%clk 00:01:08]} {[%emt 00:00:24]} 37. Kg3 {[%clk 00:06:55]}
{[%emt 00:00:20]} h6 {[%clk 00:00:33]} {[%emt 00:01:05]} 38. gxh6+ {[%clk
00:06:22]} {[%emt 00:01:03]} Kxh6 {[%clk 00:01:02]} {[%emt 00:00:02]} 39. Nce2
{[%clk 00:04:44]} {[%emt 00:02:08]} Kg7 {[%clk 00:00:53]} {[%emt 00:00:39]} 40.
Nd4 {[%clk 00:03:19]} {[%emt 00:01:55]} Kf6 {[%clk 00:00:32]} {[%emt 00:00:50]}
41. Nd3 {[%clk 00:28:23]} {[%emt 00:05:25]} Rc7 {[%clk 00:22:03]} {[%emt
00:09:00]} 42. Nxe5 {[%clk 00:19:58]} {[%emt 00:08:55]} Kxe5 {[%clk 00:19:02]}
{[%emt 00:03:31]} 43. Re2 {[%clk 00:14:29]} {[%emt 00:05:59]} Kf6 {[%clk
00:15:24]} {[%emt 00:04:09]} 44. Rf2+ {[%clk 00:14:06]} {[%emt 00:00:53]} Kg7
{[%clk 00:13:04]} {[%emt 00:02:50]} 45. Rdf1 {[%clk 00:12:33]} {[%emt
00:02:02]} Re8 {[%clk 00:12:55]} {[%emt 00:00:39]} 46. Rf6 {[%clk 00:11:30]}
{[%emt 00:01:33]} Rxe4 {[%clk 00:08:02]} {[%emt 00:05:24]} 47. Rxd6 {[%clk
00:11:51]} {[%emt 00:00:09]} b5 {[%clk 00:07:29]} {[%emt 00:01:03]} 48. Rxc6
{[%clk 00:08:32]} {[%emt 00:03:49]} Rxc6 {[%clk 00:07:27]} {[%emt 00:00:32]} 49.
Nxc6 {[%clk 00:08:56]} {[%emt 00:00:05]} bxa4 {[%clk 00:07:43]} {[%emt
00:00:14]} 50. Nxa5 {[%clk 00:08:11]} {[%emt 00:01:15]} axb3 {[%clk 00:03:56]}
{[%emt 00:04:17]} 51. cxb3 {[%clk 00:05:56]} {[%emt 00:02:45]} Rb4 {[%clk
00:01:32]} {[%emt 00:02:54]} 52. Rb1 {[%clk 00:06:21]} {[%emt 00:00:05]} f5
{[%clk 00:01:06]} {[%emt 00:00:56]} 53. Nc6 {[%clk 00:06:23]} {[%emt 00:00:27]}
Rb6 {[%clk 00:01:26]} {[%emt 00:00:09]} 54. Ne5 {[%clk 00:04:56]} {[%emt
00:01:58]} Re6 {[%clk 00:00:34]} {[%emt 00:01:24]} 55. Kf4 {[%clk 00:03:54]}
{[%emt 00:01:31]} Rd6 {[%clk 00:00:36]} {[%emt 00:00:28]} 56. b4 {[%clk
00:03:08]} {[%emt 00:01:15]} Kf6 {[%clk 00:00:49]} {[%emt 00:00:17]} 57. Nf3
{[%clk 00:03:22]} {[%emt 00:00:16]} Ke6 {[%clk 00:00:46]} {[%emt 00:00:33]} 58.
b5 {[%clk 00:02:57]} {[%emt 00:00:56]} Rb6 {[%clk 00:00:57]} {[%emt 00:00:19]}
59. Rd1 {[%clk 00:02:39]} {[%emt 00:00:47]} Rd6 {[%clk 00:00:33]} {[%emt
00:00:54]} 60. Rc1 {[%clk 00:00:39]} {[%emt 00:02:30]} Kd5 {[%clk 00:00:38]}
{[%emt 00:00:26]} 61. Rd1+ {[%clk 00:00:33]} {[%emt 00:00:36]} Kc5 {[%clk
00:01:04]} {[%emt 00:00:04]} 62. Rxd6 {[%clk 00:00:37]} {[%emt 00:00:27]} Kxd6
{[%clk 00:01:33]} {[%emt 00:00:01]} 63. Nd4 {[%clk 00:00:37]} {[%emt 00:00:30]}
Kc5 {[%clk 00:00:32]} {[%emt 00:01:31]} 64. Ke5 {[%clk 00:00:57]} {[%emt
00:00:10]} Kb6 {[%clk 00:00:55]} {[%emt 00:00:08]} 65. Kd5 {[%clk 00:00:39]}
{[%emt 00:00:47]} f4 {[%clk 00:00:42]} {[%emt 00:00:42]} 66. Kc4 {[%clk
00:00:34]} {[%emt 00:00:35]} g5 {[%clk 00:00:59]} {[%emt 00:00:13]} 67. Ne2
{[%clk 00:00:38]} {[%emt 00:00:26]} f3 {[%clk 00:00:40]} {[%emt 00:00:49]} 68.
Ng3 {[%clk 00:01:00]} {[%emt 00:00:08]} f2 {[%clk 00:00:46]} {[%emt 00:00:24]}
69. Kb4 {[%clk 00:01:08]} {[%emt 00:00:23]} g4 {[%clk 00:00:45]} {[%emt
00:00:31]} 70. Kc4 {[%clk 00:01:29]} {[%emt 00:00:09]} Kb7 {[%clk 00:00:58]}
{[%emt 00:00:17]} 71. Kc5 {[%clk 00:01:44]} {[%emt 00:00:15]} Kc7 {[%clk
00:01:21]} {[%emt 00:00:07]} 72. b6+ {[%clk 00:01:34]} {[%emt 00:00:40]} Kb8
{[%clk 00:01:27]} {[%emt 00:00:24]} 73. Kc6 {[%clk 00:01:44]} {[%emt 00:00:19]}
Kc8 {[%clk 00:01:53]} {[%emt 00:00:04]} 74. b7+ {[%clk 00:00:58]} {[%emt
00:01:16]} Kb8 {[%clk 00:02:19]} {[%emt 00:00:03]} 75. Nf1 {[%clk 00:01:08]}
{[%emt 00:00:20]} 1-0

[Event "Superettan 2017/2018"]
[Site "Vegagatan 20, Gothenburg, Sweden"]
[Date "2018.02.02"]
[Round "1.11"]
[White "Lindberg, Bengt"]
[Black "Svensson, Bengt"]
[Result "1-0"]
[TimeControl "90 minutes for 40 moves + 30 minutes for the rest of the game + 30 seconds per move from move one."]
[WhiteTitle "IM"]
[BlackTitle "IM"]
[WhiteFideId "1700359"]
[BlackFideId "1700200"]
[WhiteElo "2387"]
[BlackElo "2319"]

1. e4 {[%clk 01:30:54]} {[%emt 00:00:04]} c5 {[%clk 01:30:54]} {[%emt
00:00:08]} 2. Nf3 {[%clk 01:31:10]} {[%emt 00:00:14]} e6 {[%clk 01:30:09]}
{[%emt 00:01:16]} 3. d4 {[%clk 01:30:43]} {[%emt 00:00:55]} cxd4 {[%clk
01:30:31]} {[%emt 00:00:09]} 4. Nxd4 {[%clk 01:31:06]} {[%emt 00:00:06]} a6
{[%clk 01:30:51]} {[%emt 00:00:11]} 5. Nc3 {[%clk 01:31:05]} {[%emt 00:00:31]}
Ne7 {[%clk 01:27:54]} {[%emt 00:03:28]} 6. Nb3 {[%clk 01:25:08]} {[%emt
00:06:25]} Nec6 {[%clk 01:21:58]} {[%emt 00:06:27]} 7. Bf4 {[%clk 01:20:27]}
{[%emt 00:05:09]} d6 {[%clk 01:17:12]} {[%emt 00:05:18]} 8. Qd2 {[%clk
01:18:43]} {[%emt 00:02:13]} Qc7 {[%clk 01:14:39]} {[%emt 00:03:04]} 9. O-O-O
{[%clk 01:01:15]} {[%emt 00:42:59]} Ne5 {[%clk 01:13:57]} 10. Bg3 {[%clk
01:00:14]} b5 {[%clk 00:53:38]} 11. f4 {[%clk 00:59:49]} Nc4 {[%clk 00:50:29]}
{[%emt 00:03:05]} 12. Bxc4 {[%clk 01:00:08]} {[%emt 00:00:10]} bxc4 {[%clk
00:50:57]} {[%emt 00:00:03]} 13. Nd4 {[%clk 01:00:30]} {[%emt 00:00:08]} Nd7
{[%clk 00:48:38]} {[%emt 00:02:50]} 14. Rhe1 {[%clk 00:47:51]} {[%emt
00:13:08]} Rb8 {[%clk 00:39:28]} {[%emt 00:09:40]} 15. Bh4 {[%clk 00:23:00]}
{[%emt 00:25:21]} Qb7 {[%clk 00:16:22]} {[%emt 00:23:36]} 16. b3 {[%clk
00:21:55]} {[%emt 00:01:34]} Nf6 {[%clk 00:16:40]} {[%emt 00:00:13]} 17. e5
{[%clk 00:11:00]} {[%emt 00:11:25]} Nd5 {[%clk 00:08:04]} {[%emt 00:09:06]} 18.
Nxd5 {[%clk 00:11:23]} {[%emt 00:00:07]} Qxd5 {[%clk 00:08:27]} {[%emt
00:00:08]} 19. Qc3 {[%clk 00:11:00]} {[%emt 00:00:53]} Qc5 {[%clk 00:05:26]}
{[%emt 00:03:31]} 20. Qg3 {[%clk 00:04:37]} {[%emt 00:06:53]} Bd7 {[%clk
00:02:31]} {[%emt 00:03:26]} 21. exd6 {[%clk 00:04:01]} {[%emt 00:01:05]} Bxd6
{[%clk 00:01:24]} {[%emt 00:01:37]} 22. Qxg7 {[%clk 00:04:18]} {[%emt
00:00:13]} Qa3+ {[%clk 00:01:22]} {[%emt 00:00:32]} 23. Kd2 {[%clk 00:03:49]}
{[%emt 00:00:59]} Rf8 {[%clk 00:01:16]} {[%emt 00:00:36]} 24. Ke2 {[%clk
00:03:29]} {[%emt 00:00:50]} Qc5 {[%clk 00:00:56]} {[%emt 00:00:51]} 25. Kf1
{[%clk 00:03:18]} {[%emt 00:00:40]} Qh5 {[%clk 00:00:42]} {[%emt 00:00:45]} 26.
Nf3 {[%clk 00:03:03]} {[%emt 00:00:44]} Bc5 {[%clk 00:00:38]} {[%emt 00:00:35]}
27. Re5 {[%emt 00:01:37]} 1-0

[Event "Superettan 2017/2018"]
[Site "Vegagatan 20, Gothenburg, Sweden"]
[Date "2018.02.02"]
[Round "1.12"]
[White "Mohammadi, Amir"]
[Black "Rydstrom, Tom"]
[Result "1-0"]
[TimeControl "90 minutes for 40 moves + 30 minutes for the rest of the game + 30 seconds per move from move one."]
[BlackTitle "FM"]
[WhiteFideId "1705890"]
[BlackFideId "1714830"]
[WhiteElo "2316"]
[BlackElo "2374"]

1. e4 {[%clk 01:30:56]} {[%emt 00:00:04]} c5 {[%clk 01:30:14]} {[%emt
00:00:45]} 2. Nc3 {[%clk 01:30:49]} {[%emt 00:00:38]} e6 {[%clk 01:30:16]}
{[%emt 00:00:28]} 3. g3 {[%clk 01:30:16]} {[%emt 00:01:02]} Nc6 {[%clk
01:30:29]} {[%emt 00:00:17]} 4. Bg2 {[%clk 01:30:39]} {[%emt 00:00:06]} Be7
{[%clk 01:29:17]} {[%emt 00:01:43]} 5. d3 {[%clk 01:30:34]} {[%emt 00:00:36]}
Nf6 {[%clk 01:28:58]} {[%emt 00:00:49]} 6. f4 {[%clk 01:30:35]} {[%emt
00:00:28]} d5 {[%clk 01:28:37]} {[%emt 00:00:51]} 7. e5 {[%clk 01:30:37]}
{[%emt 00:00:29]} Nd7 {[%clk 01:26:47]} {[%emt 00:02:20]} 8. Nf3 {[%clk
01:30:38]} {[%emt 00:00:28]} b6 {[%clk 01:26:51]} {[%emt 00:00:26]} 9. O-O
{[%clk 01:30:46]} {[%emt 00:00:21]} O-O {[%clk 01:25:45]} {[%emt 00:01:37]} 10.
Qe1 {[%clk 01:28:52]} {[%emt 00:02:24]} Bb7 {[%clk 01:14:14]} {[%emt 00:12:01]}
11. Ne2 {[%clk 01:26:03]} {[%emt 00:03:19]} Rc8 {[%clk 01:13:40]} {[%emt
00:01:04]} 12. c3 {[%clk 01:26:16]} {[%emt 00:00:17]} Ba6 {[%clk 01:07:29]}
{[%emt 00:06:40]} 13. Qd1 {[%clk 01:22:48]} {[%emt 00:03:58]} f6 {[%clk
01:07:03]} {[%emt 00:00:56]} 14. Bh3 {[%clk 01:17:10]} {[%emt 00:34:15]} f5
{[%clk 01:07:00]} 15. Be3 {[%clk 01:16:26]} b5 {[%clk 00:54:26]} 16. a3 {[%clk
01:09:43]} Nb6 {[%clk 00:48:58]} 17. Kh1 {[%clk 01:06:23]} {[%emt 00:03:45]}
Kh8 {[%clk 00:48:04]} {[%emt 00:01:24]} 18. g4 {[%clk 01:05:34]} {[%emt
00:01:20]} Qd7 {[%clk 00:46:00]} {[%emt 00:02:35]} 19. gxf5 {[%clk 01:04:23]}
{[%emt 00:01:41]} exf5 {[%clk 00:46:28]} {[%emt 00:00:02]} 20. d4 {[%clk
00:56:54]} {[%emt 00:07:59]} c4 {[%clk 00:23:00]} {[%emt 00:23:58]} 21. Qc2
{[%clk 00:54:34]} {[%emt 00:02:50]} Bb7 {[%clk 00:21:34]} {[%emt 00:01:56]} 22.
Bf2 {[%clk 00:51:34]} {[%emt 00:03:30]} g6 {[%clk 00:20:01]} {[%emt 00:02:03]}
23. Rg1 {[%clk 00:46:12]} {[%emt 00:05:51]} Nd8 {[%clk 00:16:05]} {[%emt
00:04:25]} 24. Rg2 {[%clk 00:46:33]} {[%emt 00:00:09]} a5 {[%clk 00:16:15]}
{[%emt 00:00:21]} 25. Rag1 {[%clk 00:46:25]} {[%emt 00:00:37]} b4 {[%clk
00:16:41]} {[%emt 00:00:05]} 26. axb4 {[%clk 00:46:42]} {[%emt 00:00:12]} axb4
{[%clk 00:17:10]} {[%emt 00:00:02]} 27. Bh4 {[%clk 00:47:02]} {[%emt 00:00:09]}
Ne6 {[%clk 00:15:49]} {[%emt 00:01:51]} 28. Qc1 {[%clk 00:42:52]} {[%emt
00:04:40]} Ra8 {[%clk 00:14:16]} {[%emt 00:02:03]} 29. Qe1 {[%clk 00:40:38]}
{[%emt 00:02:44]} Na4 {[%clk 00:11:01]} {[%emt 00:03:46]} 30. Bxe7 {[%clk
00:36:11]} {[%emt 00:04:57]} Qxe7 {[%clk 00:11:29]} {[%emt 00:00:02]} 31. Nh4
{[%clk 00:36:33]} {[%emt 00:00:07]} Rg8 {[%clk 00:09:04]} {[%emt 00:02:55]} 32.
Bxf5 {[%clk 00:35:23]} {[%emt 00:01:41]} Nxb2 {[%clk 00:05:20]} {[%emt
00:04:14]} 33. Bxg6 {[%clk 00:10:10]} {[%emt 00:25:43]} Nd3 {[%clk 00:05:44]}
{[%emt 00:00:07]} 34. Bxd3 {[%clk 00:10:17]} {[%emt 00:00:23]} Rxg2 {[%clk
00:06:11]} {[%emt 00:00:03]} 35. Rxg2 {[%clk 00:10:15]} {[%emt 00:00:31]} cxd3
{[%clk 00:06:38]} {[%emt 00:00:03]} 36. Nf5 {[%clk 00:08:04]} {[%emt 00:02:41]}
Qf8 {[%clk 00:03:55]} {[%emt 00:03:13]} 37. Neg3 {[%clk 00:08:19]} {[%emt
00:00:14]} Nxf4 {[%clk 00:03:46]} {[%emt 00:00:39]} 38. Rf2 {[%clk 00:08:48]}
Nh3 {[%clk 00:03:38]} {[%emt 00:00:38]} 39. Rf1 {[%clk 00:09:17]} Ra2 {[%clk
00:02:32]} {[%emt 00:01:36]} 40. Qb1 {[%clk 00:09:46]} {[%emt 00:00:02]} Rc2
{[%clk 00:00:34]} {[%emt 00:02:28]} 41. e6 {[%clk 00:02:02]} {[%emt 00:08:14]}
Bc6 {[%clk 00:08:03]} {[%emt 00:23:01]} 42. e7 {[%clk 00:29:45]} {[%emt
00:02:47]} Qb8 {[%clk 00:08:09]} {[%emt 00:00:24]} 43. Qe1 {[%clk 00:04:29]}
{[%emt 00:25:45]} Nf4 {[%clk 00:08:35]} {[%emt 00:00:04]} 44. Qe3 {[%clk
00:03:54]} {[%emt 00:01:06]} d2 {[%clk 00:05:10]} {[%emt 00:03:56]} 45. Nd6
{[%clk 00:04:23]} Rc1 {[%clk 00:04:38]} {[%emt 00:01:01]} 46. Qxf4 {[%clk
00:03:43]} {[%emt 00:01:09]} Rxf1 {[%clk 00:03:11]} {[%emt 00:01:58]} 47. Nxf1
{[%clk 00:04:12]} {[%emt 00:00:02]} d1=Q {[%clk 00:03:19]} {[%emt 00:00:21]} 48.
Qf8 {[%clk 00:04:32]} {[%emt 00:00:09]} 1-0

[Event "Superettan 2017/2018"]
[Site "Vegagatan 20, Gothenburg, Sweden"]
[Date "2018.02.02"]
[Round "1.13"]
[White "Alle Wahlin, Ambjorn"]
[Black "Svenn, Matti"]
[Result "1-0"]
[TimeControl "90 minutes for 40 moves + 30 minutes for the rest of the game + 30 seconds per move from move one."]
[WhiteFideId "1714805"]
[BlackFideId "1705091"]
[WhiteElo "2224"]
[BlackElo "2166"]

1. d4 {[%clk 01:30:46]} {[%emt 00:00:13]} d5 {[%clk 01:30:45]} {[%emt
00:00:16]} 2. Nf3 {[%clk 01:31:02]} {[%emt 00:00:13]} Nf6 {[%clk 01:31:09]}
{[%emt 00:00:06]} 3. c4 {[%clk 01:31:18]} {[%emt 00:00:14]} e6 {[%clk
01:31:34]} {[%emt 00:00:05]} 4. g3 {[%clk 01:31:31]} {[%emt 00:00:17]} dxc4
{[%clk 01:29:54]} {[%emt 00:02:10]} 5. Bg2 {[%clk 01:31:18]} {[%emt 00:00:42]}
c5 {[%clk 01:30:13]} {[%emt 00:00:10]} 6. O-O {[%clk 01:28:16]} {[%emt
00:03:32]} Nc6 {[%clk 01:30:04]} {[%emt 00:00:39]} 7. Qa4 {[%clk 01:25:22]}
{[%emt 00:03:25]} Bd7 {[%clk 01:27:48]} {[%emt 00:02:46]} 8. Qxc4 {[%clk
01:24:13]} {[%emt 00:01:39]} b5 {[%clk 01:26:07]} {[%emt 00:02:11]} 9. Qd3
{[%clk 01:22:59]} {[%emt 00:01:44]} Rc8 {[%clk 01:25:22]} {[%emt 00:01:14]} 10.
dxc5 {[%clk 01:17:45]} {[%emt 00:05:45]} Bxc5 {[%clk 01:24:58]} {[%emt
00:00:54]} 11. Nc3 {[%clk 01:15:44]} {[%emt 00:02:30]} Nb4 {[%clk 01:13:31]}
{[%emt 00:11:56]} 12. Qd1 {[%clk 01:11:25]} {[%emt 00:35:47]} Bc6 {[%clk
01:11:00]} 13. Bg5 {[%clk 01:04:39]} Qxd1 {[%clk 00:38:54]} {[%emt 00:11:56]}
14. Raxd1 {[%clk 01:02:28]} {[%emt 00:02:41]} Ne4 {[%clk 00:33:42]} {[%emt
00:05:43]} 15. Rc1 {[%clk 00:34:29]} {[%emt 00:28:29]} Nxg5 {[%clk 00:23:51]}
{[%emt 00:10:21]} 16. Nxg5 {[%clk 00:33:59]} {[%emt 00:01:00]} Bxg2 {[%clk
00:24:14]} {[%emt 00:00:07]} 17. Kxg2 {[%clk 00:34:19]} {[%emt 00:00:10]} Be7
{[%clk 00:23:16]} {[%emt 00:01:28]} 18. Nf3 {[%clk 00:30:59]} {[%emt 00:03:49]}
O-O {[%clk 00:13:46]} {[%emt 00:10:01]} 19. a3 {[%clk 00:28:07]} {[%emt
00:03:22]} Nd5 {[%clk 00:14:10]} {[%emt 00:00:05]} 20. Nxd5 {[%clk 00:28:09]}
{[%emt 00:00:29]} exd5 {[%clk 00:14:35]} {[%emt 00:00:05]} 21. Rfd1 {[%clk
00:23:20]} {[%emt 00:05:19]} Bf6 {[%clk 00:13:23]} {[%emt 00:01:42]} 22. b3
{[%clk 00:21:55]} {[%emt 00:01:55]} Bb2 {[%clk 00:04:34]} {[%emt 00:09:18]} 23.
Rxc8 {[%clk 00:21:56]} {[%emt 00:00:29]} Rxc8 {[%clk 00:05:03]} {[%emt
00:00:01]} 24. Rxd5 {[%clk 00:22:13]} {[%emt 00:00:14]} Bxa3 {[%clk 00:05:27]}
{[%emt 00:00:05]} 25. Rxb5 {[%clk 00:22:30]} {[%emt 00:00:13]} Bc5 {[%clk
00:05:28]} {[%emt 00:00:29]} 26. Ne5 {[%clk 00:19:33]} {[%emt 00:03:28]} Bd4
{[%clk 00:04:03]} {[%emt 00:01:55]} 27. Nc6 {[%clk 00:19:16]} {[%emt 00:00:47]}
1-0